[Event "AUT Bundesliga 2024-25"]
[Site "Austria"]
[Date "2025.04.04"]
[Round "9.27"]
[White "Zilka, Stepan"]
[Black "Deuer, Marius"]
[Result "1/2-1/2"]
[Annotator "RC"]
[ECO "B11"]
[WhiteElo "2515"]
[BlackElo "2464"]
[PlyCount "97"]
[EventDate "2024.08.28"]
[EventType "team-tourn"]
[EventCountry "AUT"]
[SourceTitle "playchess.com"]
[Source "ChessBase"]
[SourceQuality "1"]
[TimeControl "40/5400+30:1800+30"]

1. e4 {[%emt 0:00:04]} c6 {[%emt 0:00:05]} 2. Nf3 {[%emt 0:00:04]} d5 {[%emt 0:00:05]} 3. Nc3 {[%emt 0:00:02]} Bg4 {[%emt 0:00:09]} 4. h3 {[%emt 0:00:07]} Bxf3 {[%emt 0:00:05]} 5. Qxf3 {[%emt 0:00:04]} e6 {[%emt 0:00:07]} 6. g3 {[%emt 0:00:12]} d4 {[%emt 0:00:26]} 7. Ne2 {[%emt 0:03:15]} Nd7 {[%emt 0:17:11]} 8. Bg2 {[%emt 0:00:06]} c5 {[%emt 0:01:53]} 9. O-O {[%emt 0:01:34]} Ne7 {[%emt 0:06:47]} 10. Qb3 {[%emt 0:15:03]} Qb6 {[%emt 0:09:47]} 11. d3 {[%emt 0:00:06]} Nc6 {[%emt 0:00:06]} 12. Bd2 {[%emt 0:00:29]} Bd6 {[%emt 0:02:33]} 13. f4 {[%emt 0:00:44]} e5 {[%emt 0:01:12]} 14. h4 {[%emt 0:06:38]} Qxb3 {[%emt 0:14:12]} 15. axb3 {[%emt 0:00:09]} O-O-O {[%emt 0:00:06]} 16. Bh3 {[%emt 0:01:37]} Kb8 {[%emt 0:00:15]} 17. Kg2 {[%emt 0:01:43]} Rhf8 {[%emt 0:01:59]} 18. Ng1 {[%emt 0:03:37]} b5 {[%emt 0:06:33]} 19. Nf3 {[%emt 0:03:49]} Kb7 {[%emt 0:00:07]} 20. Rf2 {[%emt 0:13:38]} h6 {[%emt 0:02:15]} 21. Raf1 {[%emt 0:04:26]} f6 {[%emt 0:07:15]} 22. Be6 {[%emt 0:04:16]} Nb6 {[%emt 0:00:51]} 23. Kh3 {[%emt 0:07:47]} Rde8 {[%emt 0:03:19]} 24. Bf5 {[%emt 0:01:45]} c4 {[%emt 0:02:19]} 25. fxe5 {[%emt 0:03:40]} fxe5 {[%emt 0:01:30]} 26. bxc4 {[%emt 0:07:42]} bxc4 {[%emt 0:00:06]} 27. g4 {[%emt 0:00:07]} Bb4 {[%emt 0:08:17]} 28. dxc4 {[%emt 0:07:33]} Nxc4 {[%emt 0:02:13]} 29. Bd7 {[%emt 0:00:20]} Nxd2 {[%emt 0:01:27]} 30. Nxd2 {[%emt 0:00:15]} Rxf2 {[%emt 0:01:45]} 31. Rxf2 {[%emt 0:00:05]} Re7 {[%emt 0:00:03]} 32. Bxc6+ {[%emt 0:01:24]} Kxc6 {[%emt 0:00:02]} 33. Nc4 {[%emt 0:00:06]} Kc5 {[%emt 0:04:13]} 34. b3 {[%emt 0:01:32]} Bc3 {[%emt 0:00:52]} 35. g5 {[%emt 0:06:45]} hxg5 {[%emt 0:01:55]} 36. hxg5 {[%emt 0:00:05]} d3 {[%emt 0:03:16]} 37. cxd3 {[%emt 0:00:07]} Kd4 {[%emt 0:00:02]} 38. Rf3 {[%emt 0:00:48]} g6 {[%emt 0:00:01]} 39. Kg4 {[%emt 0:01:27]} Rb7 {[%emt 0:00:59]} 40. Rf6 {[%emt 0:05:02]} Kxd3 {[%emt 0:01:01]} 41. Rxg6 {[%emt 0:31:30]} Rxb3 {[%emt 0:08:33]} 42. Nd6 {[%emt 0:00:00]} Rb1 {[%emt 0:03:10]} 43. Rh6 {[%emt 0:00:00]} Rg1+ {[%emt 0:05:03]} 44. Kf5 {[%emt 0:00:00]} Rxg5+ {[%emt 0:00:43]} 45. Kxg5 {[%emt 0:00:00]} Bd2+ {[%emt 0:00:04]} 46. Kg6 {[%emt 0:00:00]} Bxh6 {[%emt 0:00:07]} 47. Kxh6 {[%emt 0:00:00]} a5 {[%emt 0:00:34]} 48. Nb7 {[%emt 0:00:00]} Kxe4 {[%emt 0:00:19]} 49. Nxa5 {[%emt 0:00:00]} 1/2-1/2

[Event "AUT Bundesliga 2024-25"]
[Site "Austria"]
[Date "2025.04.04"]
[Round "9.31"]
[White "Ragger, Markus"]
[Black "Horvath, Dominik"]
[Result "1/2-1/2"]
[Annotator "RC"]
[ECO "C54"]
[WhiteElo "2585"]
[BlackElo "2543"]
[PlyCount "49"]
[EventDate "2024.08.28"]
[EventType "team-tourn"]
[EventCountry "AUT"]
[SourceTitle "playchess.com"]
[Source "ChessBase"]
[SourceQuality "1"]
[TimeControl "40/5400+30:1800+30"]

1. e4 {[%emt 0:00:02]} e5 {[%emt 0:00:15]} 2. Nf3 {[%emt 0:00:03]} Nc6 {[%emt 0:00:09]} 3. Bc4 {[%emt 0:01:16]} Bc5 {[%emt 0:01:25]} 4. c3 {[%emt 0:01:29]} Nf6 {[%emt 0:00:15]} 5. d4 {[%emt 0:00:57]} exd4 {[%emt 0:00:40]} 6. e5 {[%emt 0:00:22]} d5 {[%emt 0:00:06]} 7. Bb5 {[%emt 0:00:33]} Ne4 {[%emt 0:00:07]} 8. cxd4 {[%emt 0:00:05]} Bb6 {[%emt 0:01:55]} 9. Nc3 {[%emt 0:00:17]} O-O {[%emt 0:02:04]} 10. Be3 {[%emt 0:01:03]} Bg4 {[%emt 0:03:04]} 11. h3 {[%emt 0:01:28]} Bh5 {[%emt 0:00:06]} 12. Qc2 {[%emt 0:00:06]} Ba5 {[%emt 0:01:58]} 13. O-O {[%emt 0:02:41]} Bxf3 {[%emt 0:01:43]} 14. gxf3 {[%emt 0:01:10]} Nxd4 {[%emt 0:00:22]} 15. Bxd4 {[%emt 0:00:22]} Qg5+ {[%emt 0:00:43]} 16. Kh1 {[%emt 0:00:49]} Bxc3 {[%emt 0:00:11]} 17. bxc3 {[%emt 0:11:50]} Qf5 {[%emt 0:02:10]} 18. Kg2 {[%emt 0:02:23]} Qg5+ {[%emt 0:00:50]} 19. Kh1 {[%emt 0:00:11]} Qf5 {[%emt 0:00:06]} 20. fxe4 {[%emt 0:03:10]} Qxh3+ {[%emt 0:00:38]} 21. Kg1 {[%emt 0:00:04]} Qg4+ {[%emt 0:00:05]} 22. Kh1 {[%emt 0:00:07]} Qh3+ {[%emt 0:00:05]} 23. Kg1 {[%emt 0:00:04]} Qg4+ {[%emt 0:00:05]} 24. Kh1 {[%emt 0:00:05]} Qh3+ {[%emt 0:00:05]} 25. Kg1 {[%emt 0:00:04]} 1/2-1/2

[Event "AUT Bundesliga 2024-25"]
[Site "Austria"]
[Date "2025.04.04"]
[Round "9.34"]
[White "Korpa, Bence"]
[Black "Handler, Lukas"]
[Result "1-0"]
[Annotator "RC"]
[ECO "D00"]
[WhiteElo "2543"]
[BlackElo "2444"]
[PlyCount "89"]
[EventDate "2024.08.28"]
[EventType "team-tourn"]
[EventCountry "AUT"]
[SourceTitle "playchess.com"]
[Source "ChessBase"]
[SourceQuality "1"]
[TimeControl "40/5400+30:1800+30"]

1. d4 {[%emt 0:00:04]} d5 {[%emt 0:00:08]} 2. Bf4 {[%emt 0:00:09]} Nf6 {[%emt 0:00:45]} 3. e3 {[%emt 0:00:22]} c5 {[%emt 0:01:36]} 4. c3 {[%emt 0:00:27]} Nc6 {[%emt 0:00:24]} 5. Nd2 {[%emt 0:00:12]} e6 {[%emt 0:00:19]} 6. Bd3 {[%emt 0:02:26]} Bd6 {[%emt 0:00:29]} 7. Bxd6 {[%emt 0:00:35]} Qxd6 {[%emt 0:00:15]} 8. f4 {[%emt 0:00:09]} cxd4 {[%emt 0:05:02]} 9. cxd4 {[%emt 0:00:09]} Bd7 {[%emt 0:02:48]} 10. a3 {[%emt 0:02:29]} Ne7 {[%emt 0:05:28]} 11. Ngf3 {[%emt 0:02:36]} Qb6 {[%emt 0:05:13]} 12. Qe2 {[%emt 0:05:36]} Qxb2 {[%emt 0:12:48]} 13. O-O {[%emt 0:00:13]} Qb6 {[%emt 0:02:18]} 14. Ne5 {[%emt 0:06:27]} Bc6 {[%emt 0:05:35]} 15. Rab1 {[%emt 0:13:49]} Qc7 {[%emt 0:02:54]} 16. Qf3 {[%emt 0:00:28]} Nd7 {[%emt 0:19:07]} 17. Qh5 {[%emt 0:09:57]} g6 {[%emt 0:03:55]} 18. Qh6 {[%emt 0:00:09]} Nxe5 {[%emt 0:01:36]} 19. fxe5 {[%emt 0:00:05]} Nf5 {[%emt 0:01:04]} 20. Bxf5 {[%emt 0:00:16]} gxf5 {[%emt 0:01:13]} 21. Nb3 {[%emt 0:03:08]} O-O-O {[%emt 0:09:23]} 22. Rfc1 {[%emt 0:14:50]} Kb8 {[%emt 0:02:02]} 23. Nc5 {[%emt 0:00:09]} Qe7 {[%emt 0:02:35]} 24. Nxe6 {[%emt 0:02:15]} fxe6 {[%emt 0:01:33]} 25. Rxc6 {[%emt 0:00:21]} Rhe8 {[%emt 0:01:52]} 26. a4 {[%emt 0:22:02]} Rc8 {[%emt 0:04:11]} 27. Rxc8+ {[%emt 0:00:18]} Rxc8 {[%emt 0:00:16]} 28. h3 {[%emt 0:00:27]} Rg8 {[%emt 0:05:01]} 29. Rb2 {[%emt 0:05:29]} Rg6 {[%emt 0:01:15]} 30. Qh5 {[%emt 0:00:07]} Qf7 {[%emt 0:01:40]} 31. Qh4 {[%emt 0:00:38]} Rg8 {[%emt 0:00:43]} 32. a5 {[%emt 0:01:47]} Qg7 {[%emt 0:00:57]} 33. a6 {[%emt 0:00:16]} b6 {[%emt 0:01:05]} 34. Kh2 {[%emt 0:02:25]} Rc8 {[%emt 0:01:11]} 35. g4 {[%emt 0:01:33]} fxg4 {[%emt 0:00:33]} 36. hxg4 {[%emt 0:00:38]} Kc7 {[%emt 0:00:38]} 37. Kg3 {[%emt 0:01:10]} Kd7 {[%emt 0:00:28]} 38. Rh2 {[%emt 0:00:21]} Rh8 {[%emt 0:00:20]} 39. Qh5 {[%emt 0:02:24]} h6 {[%emt 0:00:36]} 40. Rh1 {[%emt 0:02:27]} b5 {[%emt 0:00:28]} 41. Rc1 {[%emt 0:09:54]} b4 {[%emt 0:06:54]} 42. e4 {[%emt 0:05:11]} Rf8 {[%emt 0:05:23]} 43. exd5 {[%emt 0:03:24]} exd5 {[%emt 0:00:06]} 44. Rc5 {[%emt 0:01:51]} Qh7 {[%emt 0:01:47]} 45. e6+ {[%emt 0:00:17]} 1-0

[Event "AUT Bundesliga 2024-25"]
[Site "Austria"]
[Date "2025.04.04"]
[Round "9.35"]
[White "Bauer, Sebastian"]
[Black "Subelj, Jan"]
[Result "1/2-1/2"]
[Annotator "RC"]
[ECO "B13"]
[WhiteElo "2312"]
[BlackElo "2528"]
[PlyCount "237"]
[EventDate "2024.08.28"]
[EventType "team-tourn"]
[EventCountry "AUT"]
[SourceTitle "playchess.com"]
[Source "ChessBase"]
[SourceQuality "1"]
[TimeControl "40/5400+30:1800+30"]

1. e4 {[%emt 0:00:03]} c6 {[%emt 0:01:29]} 2. d4 {[%emt 0:00:19]} d5 {[%emt 0:00:06]} 3. exd5 {[%emt 0:00:24]} cxd5 {[%emt 0:00:07]} 4. Bd3 {[%emt 0:00:07]} Nf6 {[%emt 0:00:44]} 5. c3 {[%emt 0:04:05]} Bg4 {[%emt 0:01:08]} 6. Qb3 {[%emt 0:01:55]} Qc7 {[%emt 0:00:36]} 7. h3 {[%emt 0:03:28]} Bh5 {[%emt 0:03:55]} 8. Ne2 {[%emt 0:02:06]} Nc6 {[%emt 0:03:11]} 9. Bf4 {[%emt 0:01:16]} Qd7 {[%emt 0:00:53]} 10. Nd2 {[%emt 0:00:30]} e6 {[%emt 0:01:13]} 11. Ng1 {[%emt 0:03:40]} Bd6 {[%emt 0:05:54]} 12. Bxd6 {[%emt 0:00:37]} Qxd6 {[%emt 0:00:06]} 13. Ngf3 {[%emt 0:00:11]} O-O {[%emt 0:01:23]} 14. O-O {[%emt 0:00:08]} Rab8 {[%emt 0:00:17]} 15. Rfe1 {[%emt 0:01:07]} Qc7 {[%emt 0:15:22]} 16. a3 {[%emt 0:17:14]} Rfc8 {[%emt 0:02:37]} 17. Qc2 {[%emt 0:07:02]} a5 {[%emt 0:12:49]} 18. a4 {[%emt 0:11:45]} Nb4 {[%emt 0:06:36]} 19. cxb4 {[%emt 0:01:44]} Qxc2 {[%emt 0:01:47]} 20. Bxc2 {[%emt 0:00:09]} Rxc2 {[%emt 0:00:08]} 21. bxa5 {[%emt 0:00:40]} Rxb2 {[%emt 0:00:48]} 22. Reb1 {[%emt 0:01:15]} Rxb1+ {[%emt 0:00:09]} 23. Rxb1 {[%emt 0:00:05]} Nd7 {[%emt 0:00:04]} 24. Ne5 {[%emt 0:15:13]} Nxe5 {[%emt 0:00:29]} 25. dxe5 {[%emt 0:00:01]} Be2 {[%emt 0:00:09]} 26. Rc1 {[%emt 0:00:54]} h6 {[%emt 0:11:27]} 27. f4 {[%emt 0:05:53]} Rd8 {[%emt 0:04:28]} 28. Kf2 {[%emt 0:03:12]} Ba6 {[%emt 0:00:07]} 29. Rc5 {[%emt 0:07:51]} d4 {[%emt 0:03:17]} 30. Kf3 {[%emt 0:02:42]} d3 {[%emt 0:01:46]} 31. Ke3 {[%emt 0:00:53]} g5 {[%emt 0:01:03]} 32. fxg5 {[%emt 0:03:43]} hxg5 {[%emt 0:00:12]} 33. Ke4 {[%emt 0:01:26]} Kg7 {[%emt 0:00:10]} 34. Ke3 {[%emt 0:00:12]} Kh6 {[%emt 0:00:30]} 35. Ke4 {[%emt 0:02:44]} Kg6 {[%emt 0:00:06]} 36. Ke3 {[%emt 0:00:12]} Kf5 {[%emt 0:00:13]} 37. Rc7 {[%emt 0:00:16]} Kg6 {[%emt 0:01:25]} 38. Rc5 {[%emt 0:00:05]} Kh6 {[%emt 0:00:34]} 39. Ke4 {[%emt 0:00:07]} Kg7 {[%emt 0:00:04]} 40. Ke3 {[%emt 0:00:29]} Kg6 {[%emt 0:00:04]} 41. Ke4 {[%emt 0:30:47]} Rd7 {[%emt 0:30:22]} 42. Ke3 {[%emt 0:00:00]} Kf5 {[%emt 0:00:00]} 43. Ne4 {[%emt 0:00:00]} d2 {[%emt 0:00:00]} 44. Nd6+ {[%emt 0:00:00]} Kg6 {[%emt 0:00:00]} 45. Kxd2 {[%emt 0:00:00]} f6 {[%emt 0:00:00]} 46. Kc3 {[%emt 0:00:00]} fxe5 {[%emt 0:00:00]} 47. Nc4 {[%emt 0:00:00]} Bxc4 {[%emt 0:00:00]} 48. Rxc4 {[%emt 0:00:00]} Kf5 {[%emt 0:00:00]} 49. g4+ {[%emt 0:00:00]} Kf6 {[%emt 0:00:00]} 50. Kb4 {[%emt 0:00:00]} Rd5 {[%emt 0:00:00]} 51. Kc3 {[%emt 0:00:00]} Rxa5 {[%emt 0:00:00]} 52. Kd3 {[%emt 0:00:20]} Rd5+ {[%emt 0:00:00]} 53. Ke4 {[%emt 0:02:34]} Rd2 {[%emt 0:00:00]} 54. Rb4 {[%emt 0:01:07]} Ra2 {[%emt 0:00:00]} 55. Kf3 {[%emt 0:00:51]} Ra3+ {[%emt 0:00:00]} 56. Kg2 {[%emt 0:00:08]} b6 {[%emt 0:00:00]} 57. Kh2 {[%emt 0:01:29]} Rf3 {[%emt 0:00:00]} 58. Rxb6 {[%emt 0:03:44]} e4 {[%emt 0:00:00]} 59. Rb5 {[%emt 0:00:43]} e3 {[%emt 0:00:00]} 60. Kg2 {[%emt 0:00:47]} Rf2+ {[%emt 0:00:00]} 61. Kg1 {[%emt 0:00:53]} Ra2 {[%emt 0:00:00]} 62. Kf1 {[%emt 0:00:29]} Rxa4 {[%emt 0:00:00]} 63. Ke2 {[%emt 0:00:41]} Ra2+ {[%emt 0:00:00]} 64. Kxe3 {[%emt 0:00:01]} Rh2 {[%emt 0:00:00]} 65. Ra5 {[%emt 0:00:17]} Rxh3+ {[%emt 0:00:00]} 66. Kf2 {[%emt 0:00:01]} Rd3 {[%emt 0:00:00]} 67. Kg2 {[%emt 0:01:24]} Rd5 {[%emt 0:00:00]} 68. Ra8 {[%emt 0:00:17]} Ke5 {[%emt 0:00:00]} 69. Re8 {[%emt 0:00:25]} Ra5 {[%emt 0:00:00]} 70. Rb8 {[%emt 0:00:51]} Kd4 {[%emt 0:00:00]} 71. Rb4+ {[%emt 0:00:27]} Ke5 {[%emt 0:00:00]} 72. Kf3 {[%emt 0:00:55]} Ra3+ {[%emt 0:00:00]} 73. Kf2 {[%emt 0:00:22]} Rd3 {[%emt 0:00:00]} 74. Rb5+ {[%emt 0:00:46]} Rd5 {[%emt 0:00:00]} 75. Rb6 {[%emt 0:00:03]} Rc5 {[%emt 0:00:00]} 76. Ra6 {[%emt 0:00:12]} Kd5 {[%emt 0:00:00]} 77. Rb6 {[%emt 0:00:52]} Ra5 {[%emt 0:00:00]} 78. Rb8 {[%emt 0:00:29]} Kd4 {[%emt 0:00:00]} 79. Rb4+ {[%emt 0:00:12]} Kc5 {[%emt 0:00:00]} 80. Rb8 {[%emt 0:00:20]} Kc4 {[%emt 0:00:00]} 81. Ke3 {[%emt 0:00:35]} Re5+ {[%emt 0:00:00]} 82. Kf3 {[%emt 0:00:04]} Kc3 {[%emt 0:00:00]} 83. Rd8 {[%emt 0:00:25]} Kc4 {[%emt 0:00:00]} 84. Rd7 {[%emt 0:00:09]} Kc5 {[%emt 0:00:00]} 85. Rd8 {[%emt 0:00:03]} Rd5 {[%emt 0:00:00]} 86. Ra8 {[%emt 0:00:27]} Kd6 {[%emt 0:00:08]} 87. Ke4 {[%emt 0:00:23]} Rb5 {[%emt 0:00:17]} 88. Ra6+ {[%emt 0:00:25]} Ke7 {[%emt 0:00:06]} 89. Ra4 {[%emt 0:00:15]} Rb3 {[%emt 0:00:06]} 90. Ke5 {[%emt 0:01:24]} Re3+ {[%emt 0:00:06]} 91. Kd4 {[%emt 0:00:03]} Re1 {[%emt 0:00:05]} 92. Kd3 {[%emt 0:00:18]} Kf6 {[%emt 0:01:39]} 93. Kd2 {[%emt 0:00:04]} Rf1 {[%emt 0:00:05]} 94. Ke3 {[%emt 0:00:07]} Rb1 {[%emt 0:00:07]} 95. Kf3 {[%emt 0:00:16]} Rb3+ {[%emt 0:00:04]} 96. Kf2 {[%emt 0:00:10]} Ke5 {[%emt 0:00:04]} 97. Ra5+ {[%emt 0:00:09]} Kf6 {[%emt 0:00:06]} 98. Ra4 {[%emt 0:00:04]} Rd3 {[%emt 0:00:04]} 99. Ke2 {[%emt 0:00:15]} Rd5 {[%emt 0:00:06]} 100. Kf3 {[%emt 0:00:04]} Ke5 {[%emt 0:00:11]} 101. Re4+ {[%emt 0:00:09]} Kd6 {[%emt 0:00:07]} 102. Ra4 {[%emt 0:00:03]} Rc5 {[%emt 0:00:08]} 103. Ra8 {[%emt 0:00:37]} Kd5 {[%emt 0:00:18]} 104. Ra3 {[%emt 0:01:41]} e5 {[%emt 0:01:27]} 105. Rd3+ {[%emt 0:00:53]} Ke6 {[%emt 0:00:04]} 106. Ra3 {[%emt 0:00:10]} Rc4 {[%emt 0:00:12]} 107. Ra6+ {[%emt 0:02:20]} Kd5 {[%emt 0:00:02]} 108. Rg6 {[%emt 0:00:11]} Rc3+ {[%emt 0:00:19]} 109. Kf2 {[%emt 0:00:18]} Kd4 {[%emt 0:00:07]} 110. Rxg5 {[%emt 0:00:16]} e4 {[%emt 0:00:06]} 111. Ra5 {[%emt 0:00:52]} Rc2+ {[%emt 0:00:56]} 112. Ke1 {[%emt 0:00:12]} Ke3 {[%emt 0:00:03]} 113. Ra3+ {[%emt 0:00:04]} Kf4 {[%emt 0:00:04]} 114. Rb3 {[%emt 0:00:14]} Kxg4 {[%emt 0:00:06]} 115. Ra3 {[%emt 0:00:02]} Rh2 {[%emt 0:00:10]} 116. Rb3 {[%emt 0:00:15]} Rh3 {[%emt 0:00:04]} 117. Rxh3 {[%emt 0:00:24]} Kxh3 {[%emt 0:00:04]} 118. Ke2 {[%emt 0:00:04]} e3 {[%emt 0:00:03]} 119. Kxe3 {[%emt 0:00:35]} 1/2-1/2

[Event "AUT Bundesliga 2024-25"]
[Site "Austria"]
[Date "2025.04.05"]
[Round "10.4"]
[White "Korpa, Bence"]
[Black "Fahrner, Kurt"]
[Result "1-0"]
[Annotator "RC"]
[ECO "A41"]
[WhiteElo "2543"]
[BlackElo "2266"]
[PlyCount "53"]
[EventDate "2024.08.28"]
[EventType "team-tourn"]
[EventCountry "AUT"]
[SourceTitle "playchess.com"]
[Source "ChessBase"]
[SourceQuality "1"]
[TimeControl "40/5400+30:1800+30"]

1. Nf3 {[%emt 0:00:04]} d6 {[%emt 0:00:08]} 2. d4 {[%emt 0:00:35]} g6 {[%emt 0:00:09]} 3. b4 {[%emt 0:02:33]} Bg7 {[%emt 0:00:47]} 4. Bb2 {[%emt 0:00:07]} f5 {[%emt 0:07:25]} 5. e3 {[%emt 0:01:22]} Nf6 {[%emt 0:02:40]} 6. c4 {[%emt 0:00:13]} c6 {[%emt 0:07:36]} 7. Nc3 {[%emt 0:01:52]} Na6 {[%emt 0:03:34]} 8. Qb3 {[%emt 0:01:48]} Nc7 {[%emt 0:01:05]} 9. a4 {[%emt 0:01:21]} O-O {[%emt 0:03:34]} 10. Be2 {[%emt 0:01:13]} Kh8 {[%emt 0:12:49]} 11. Rd1 {[%emt 0:03:37]} Be6 {[%emt 0:00:40]} 12. Ng5 {[%emt 0:08:44]} Bg8 {[%emt 0:02:35]} 13. h4 {[%emt 0:00:07]} Qe8 {[%emt 0:02:17]} 14. d5 {[%emt 0:02:35]} Rd8 {[%emt 0:10:13]} 15. Bf3 {[%emt 0:04:01]} e5 {[%emt 0:00:21]} 16. dxe6 {[%emt 0:00:35]} Nxe6 {[%emt 0:00:08]} 17. Ne2 {[%emt 0:00:08]} a5 {[%emt 0:09:29]} 18. bxa5 {[%emt 0:01:41]} Nc5 {[%emt 0:04:17]} 19. Qc2 {[%emt 0:03:47]} Nfe4 {[%emt 0:03:39]} 20. Nf4 {[%emt 0:08:26]} Be5 {[%emt 0:00:24]} 21. Bxe4 {[%emt 0:07:44]} fxe4 {[%emt 0:00:47]} 22. Rd4 {[%emt 0:04:23]} Kg7 {[%emt 0:19:20]} 23. Nxe4 {[%emt 0:04:07]} Kh6 {[%emt 0:06:07]} 24. h5 {[%emt 0:04:03]} g5 {[%emt 0:00:30]} 25. Nxd6 {[%emt 0:01:37]} Rxd6 {[%emt 0:01:55]} 26. Rxd6+ {[%emt 0:00:21]} Kg7 {[%emt 0:00:23]} 27. Ng6 {[%emt 0:03:10]} 1-0

[Event "AUT Bundesliga 2024-25"]
[Site "Austria"]
[Date "2025.04.05"]
[Round "10.15"]
[White "Erdos, Viktor"]
[Black "Zilka, Stepan"]
[Result "*"]
[Annotator "RC"]
[ECO "C65"]
[WhiteElo "2542"]
[BlackElo "2515"]
[PlyCount "60"]
[EventDate "2024.08.28"]
[EventType "team-tourn"]
[EventCountry "AUT"]
[SourceTitle "playchess.com"]
[Source "ChessBase"]
[SourceQuality "1"]
[TimeControl "40/5400+30:1800+30"]

1. e4 {[%emt 0:00:13]} e5 {[%emt 0:00:05]} 2. Nf3 {[%emt 0:00:05]} Nc6 {[%emt 0:00:03]} 3. Bb5 {[%emt 0:00:07]} Nf6 {[%emt 0:00:06]} 4. d3 {[%emt 0:00:05]} Ne7 {[%emt 0:00:04]} 5. Nc3 {[%emt 0:03:49]} c6 {[%emt 0:00:07]} 6. Bc4 {[%emt 0:00:05]} d6 {[%emt 0:00:08]} 7. d4 {[%emt 0:03:17]} exd4 {[%emt 0:03:30]} 8. Qxd4 {[%emt 0:05:57]} d5 {[%emt 0:00:38]} 9. exd5 {[%emt 0:10:17]} Nexd5 {[%emt 0:00:02]} 10. Nxd5 {[%emt 0:07:10]} cxd5 {[%emt 0:00:28]} 11. Bb5+ {[%emt 0:12:25]} Bd7 {[%emt 0:00:01]} 12. Bxd7+ {[%emt 0:00:07]} Qxd7 {[%emt 0:00:03]} 13. O-O {[%emt 0:01:00]} Be7 {[%emt 0:00:06]} 14. Bg5 {[%emt 0:01:09]} O-O {[%emt 0:00:20]} 15. Qd3 {[%emt 0:00:15]} h6 {[%emt 0:02:32]} 16. Bh4 {[%emt 0:02:43]} Rad8 {[%emt 0:01:40]} 17. c3 {[%emt 0:01:49]} Ne4 {[%emt 0:00:54]} 18. Bxe7 {[%emt 0:00:21]} Qxe7 {[%emt 0:00:02]} 19. Nd4 {[%emt 0:01:29]} Nc5 {[%emt 0:07:54]} 20. Qd2 {[%emt 0:01:01]} Rfe8 {[%emt 0:01:23]} 21. Rad1 {[%emt 0:04:56]} Qf6 {[%emt 0:01:54]} 22. Rfe1 {[%emt 0:02:11]} Ne4 {[%emt 0:07:01]} 23. Qc2 {[%emt 0:02:02]} Qa6 {[%emt 0:02:08]} 24. a3 {[%emt 0:05:26]} Nf6 {[%emt 0:05:07]} 25. Nf5 {[%emt 0:07:33]} Re6 {[%emt 0:02:26]} 26. Nd4 {[%emt 0:00:55]} Ree8 {[%emt 0:08:12]} 27. Nf5 {[%emt 0:01:48]} Re6 {[%emt 0:00:17]} 28. Nd4 {[%emt 0:06:20]} Ree8 {[%emt 0:00:25]} 29. Nf5 {[%emt 0:00:03]} Re6 {[%emt 0:00:05]} 30. Nd4 {[%emt 0:00:02]} Ree8 {[%emt 0:00:41]} *

[Event "AUT Bundesliga 2024-25"]
[Site "Austria"]
[Date "2025.04.05"]
[Round "10.16"]
[White "Hracek, Zbynek"]
[Black "Sankalp Gupta"]
[Result "1/2-1/2"]
[Annotator "RC"]
[ECO "B12"]
[WhiteElo "2538"]
[BlackElo "2548"]
[PlyCount "45"]
[EventDate "2024.08.28"]
[EventType "team-tourn"]
[EventCountry "AUT"]
[SourceTitle "playchess.com"]
[Source "ChessBase"]
[SourceQuality "1"]
[TimeControl "40/5400+30:1800+30"]

1. e4 {[%emt 0:00:03]} c6 {[%emt 0:00:23]} 2. d4 {[%emt 0:00:11]} d5 {[%emt 0:00:02]} 3. e5 {[%emt 0:00:11]} c5 {[%emt 0:00:08]} 4. c3 {[%emt 0:00:06]} Nc6 {[%emt 0:00:07]} 5. Be2 {[%emt 0:00:05]} Bf5 {[%emt 0:07:50]} 6. Nf3 {[%emt 0:00:31]} e6 {[%emt 0:00:21]} 7. O-O {[%emt 0:00:26]} a6 {[%emt 0:05:59]} 8. Be3 {[%emt 0:03:03]} Qb6 {[%emt 0:03:32]} 9. Nh4 {[%emt 0:03:22]} Nge7 {[%emt 0:07:59]} 10. Qd2 {[%emt 0:12:23]} cxd4 {[%emt 0:14:05]} 11. cxd4 {[%emt 0:00:06]} Bxb1 {[%emt 0:01:10]} 12. Raxb1 {[%emt 0:02:43]} Ng6 {[%emt 0:00:06]} 13. Nxg6 {[%emt 0:07:43]} hxg6 {[%emt 0:00:03]} 14. b4 {[%emt 0:09:13]} Bxb4 {[%emt 0:11:04]} 15. Qb2 {[%emt 0:00:14]} Qa5 {[%emt 0:04:14]} 16. Rfc1 {[%emt 0:01:23]} O-O {[%emt 0:05:37]} 17. Rxc6 {[%emt 0:02:35]} bxc6 {[%emt 0:00:07]} 18. Qxb4 {[%emt 0:00:03]} Qxa2 {[%emt 0:00:55]} 19. Rb2 {[%emt 0:04:22]} Qa1+ {[%emt 0:00:13]} 20. Rb1 {[%emt 0:00:02]} Qa2 {[%emt 0:00:09]} 21. Rb2 {[%emt 0:00:02]} Qa1+ {[%emt 0:00:13]} 22. Rb1 {[%emt 0:00:14]} Qa2 {[%emt 0:00:07]} 23. Rb2 {[%emt 0:00:04]} 1/2-1/2

[Event "AUT Bundesliga 2024-25"]
[Site "Austria"]
[Date "2025.04.05"]
[Round "10.17"]
[White "Perunovic, Milos"]
[Black "Stalmach, Richard"]
[Result "0-1"]
[Annotator "RC"]
[ECO "B90"]
[WhiteElo "2501"]
[BlackElo "2427"]
[PlyCount "74"]
[EventDate "2024.08.28"]
[EventType "team-tourn"]
[EventCountry "AUT"]
[SourceTitle "playchess.com"]
[Source "ChessBase"]
[SourceQuality "1"]
[TimeControl "40/5400+30:1800+30"]

1. e4 {[%emt 0:00:21]} c5 {[%emt 0:00:05]} 2. Nf3 {[%emt 0:00:31]} d6 {[%emt 0:00:06]} 3. d4 {[%emt 0:00:34]} cxd4 {[%emt 0:00:05]} 4. Nxd4 {[%emt 0:00:09]} Nf6 {[%emt 0:00:05]} 5. Nc3 {[%emt 0:00:59]} a6 {[%emt 0:00:05]} 6. Be3 {[%emt 0:07:02]} e5 {[%emt 0:00:08]} 7. Nb3 {[%emt 0:04:20]} Be6 {[%emt 0:00:17]} 8. h3 {[%emt 0:01:44]} Be7 {[%emt 0:00:05]} 9. Qf3 {[%emt 0:02:42]} O-O {[%emt 0:00:13]} 10. O-O-O {[%emt 0:03:59]} b5 {[%emt 0:00:16]} 11. g4 {[%emt 0:00:40]} b4 {[%emt 0:00:13]} 12. Nd5 {[%emt 0:00:13]} a5 {[%emt 0:00:06]} 13. Kb1 {[%emt 0:11:13]} a4 {[%emt 0:01:45]} 14. Nd2 {[%emt 0:00:40]} Nxd5 {[%emt 0:00:09]} 15. exd5 {[%emt 0:00:02]} Bc8 {[%emt 0:00:06]} 16. Bd3 {[%emt 0:06:49]} Nd7 {[%emt 0:00:19]} 17. g5 {[%emt 0:08:28]} Qc7 {[%emt 0:03:16]} 18. Rhg1 {[%emt 0:13:59]} Ba6 {[%emt 0:11:40]} 19. Bxa6 {[%emt 0:12:22]} Rxa6 {[%emt 0:00:07]} 20. Qe2 {[%emt 0:00:30]} Raa8 {[%emt 0:08:51]} 21. Ne4 {[%emt 0:05:50]} Rfc8 {[%emt 0:02:05]} 22. Qd3 {[%emt 0:01:39]} Ra5 {[%emt 0:07:54]} 23. h4 {[%emt 0:03:04]} a3 {[%emt 0:01:26]} 24. b3 {[%emt 0:07:16]} Rxd5 {[%emt 0:00:57]} 25. Qc4 {[%emt 0:00:26]} Qxc4 {[%emt 0:01:00]} 26. bxc4 {[%emt 0:00:02]} Rxd1+ {[%emt 0:00:06]} 27. Rxd1 {[%emt 0:00:07]} Rc6 {[%emt 0:01:24]} 28. c3 {[%emt 0:04:25]} bxc3 {[%emt 0:03:06]} 29. Kc2 {[%emt 0:00:02]} f5 {[%emt 0:00:22]} 30. gxf6 {[%emt 0:01:06]} gxf6 {[%emt 0:00:09]} 31. Kb3 {[%emt 0:02:27]} c2 {[%emt 0:00:45]} 32. Rg1+ {[%emt 0:00:46]} Kf7 {[%emt 0:00:06]} 33. Nc3 {[%emt 0:01:26]} Nb6 {[%emt 0:01:07]} 34. Bxb6 {[%emt 0:01:02]} Rxb6+ {[%emt 0:00:05]} 35. Kxc2 {[%emt 0:00:25]} Rb2+ {[%emt 0:00:05]} 36. Kd3 {[%emt 0:00:13]} Rxf2 {[%emt 0:00:05]} 37. h5 {[%emt 0:00:45]} f5 {[%emt 0:01:52]} 0-1